{"text_format":"1","workbook":"xlsx","n_sheets":1,"sheets":["Sheet1"],"not_rendered":{"charts":0,"images":0,"macros":1,"external_links":0,"defined_names":1,"comments":0,"pivot_tables":0},"unopened":[],"bounds":{"document_bytes":16777216,"sheet_cells":100000,"rows_first":2000,"rows_last":500,"rows_between":2000,"halvings":0,"cell_chars":16384,"cell_head_chars":4096},"cells_cut":0,"cells_raw":0,"read":"whole","date_system":"1900"}

{"sheet":"Sheet1","index":0,"n_rows":69,"n_cols":4,"rows_kept":69,"cut":false,"hidden":false,"merged":[]}
[null,"FREE SHIPPING (UK MAINLAND ONLY) now included for orders over £100.                      ◄Quantities in column 'A' please.","Price (£)"]
[1,"Build manual no VAT when purchased alone",46.2,{"$f":"C2*A2","v":46.2}]
[null,"Front axle swing and support brackets",57.750000000000007,{"$f":"A3*C3","v":0}]
[null,"Steering Assembly: king pins and stub axles",35.805,{"$f":"A4*C4","v":0}]
[null,"Steering Brace",13.750000000000002,0]
[null,"Steering column",24.255000000000003,0]
[null,"Steering Wheel",32.340000000000003,0]
[null,"Rear Axle and plates",28.82,0]
[null,"Brake assembly inc retarding materials",68.14500000000001,0]
[null,"Tow bar",19.635000000000002,0]
[null,"All above items include all nuts and bolts, washers & fixings to mount all the parts."]
[null,"FABRICATED PARTS: STEEL",280.5]
[null,"Rear wheels: open centre tread pattern tyres and tubes x 2 on steel rims",85.075000000000003,0]
[null,"Front Wheels: three rib front tyres and tubes on steel rim",57.750000000000007,0]
[null,"Drive sprocket conversion: extension welded to drive wheel & sprocket, plus bearing",28.875000000000004,0]
[null,"WHEELS",161.70000000000002,{"$f":"A16*C16","v":0}]
[null,"Motor and Gearbox unit",138.60000000000002,0]
[null,"Motor Mounting Plate and bolt set",12.705000000000002,{"$f":"A18*C18","v":0}]
[null,"Motor drive sprocket Single Drive",14.437500000000002,0]
[null,"Chain and link Single Drive",9.240000000000002,0]
[null,"DRIVE",174.98250000000004,{"$f":"A21*C21","v":0}]
[null,"Speed controller:12/24v including motor wiring, ignition & Fwd/Rev switches & wiring",172.09500000000003,0]
[null," Aluminium chequerplate throttle box complete ready assembled. (or kit options see below.)",69.300000000000011,0]
[null,"Safety Cut-out switch , stops spike to electronics when pushing away",8.0850000000000009,{"$f":"A24*C24","v":0}]
[null,"Motor protection fuse box and spare fuse",9.240000000000002,0]
[null,"CONTROL",258.72000000000003,{"$f":"A26*C26","v":0}]
[null,"Chain Guard single motor (2 piece)",12.705000000000002,0]
[null,"Ancillary pk: hinges for:bonnet, seat & throttle Grilles 5, Budget lock and key, & seat stops. ",25.410000000000004,0]
[null,"BODYWORK",38.115000000000002,{"$f":"A29*C29","v":0}]
[null,"Lighting set: Headlamp units, tail lamps,switch, wire, con blocks ",90.090000000000018,{"$f":"A30*C30","v":0}]
[null,"Lighting and horn fuse box",6.3525000000000009,0]
[null,"Electric horn kit",13.860000000000003,0]
[null,"Dash board aluminium panel with holes provided for switch mounting ",6.3525000000000009,0]
[null,"Instrument sticker",4.620000000000001,0]
[null,"Wheel retaining caps. Do not fit until job complete.( Use jubilee clips as temporary fixing). ",6.3525000000000009,0]
[null,"COMPONENTS",127.64400000000002,{"$f":"A36*C36","v":0}]
[null,"1 x GEL Battery. 12V 33AH (Safety Non Spill)",97.02000000000001,{"$f":"A37*C37","v":0}]
[null,"Safe Battery mounting kit - Strap and bolt set for 1 or 2 batteries.",11.55,{"$f":"A38*C38","v":0}]
[null,null,108.57000000000001]
[null,"TO ORDER ALL ITEMS ABOVE PLEASE ORDER LINE BELOW:            Total parts individually column B           ",1196.4370000000001]
[null,"Basic Kit all standard parts in list ▲ Saving £26.44  price £1,170.00 INC VAT + and FREE UK Mainland SHIPPING (Highlands and Islands may carry a surcharge)",1170,0]
[null,"ACCESSORIES & DETAIL EXTRAS"]
[null,"Safe battery mounting set, strap and bolts for single or twin Batteries",11.55,{"$f":"A43*C43","v":0}]
[null,"Second motor kit motor, extra: cable, battery clamps, mount kit, chain, sprocket, drive wheel conversion & chain guard",213.67500000000001,{"$f":"A44*C44","v":0}]
[null," Aluminium chequerplate throttle box complete ready assembled (Do not buy if purchasing complete kit above)",69.300000000000011,{"$f":"A45*C45","v":0}]
[null,"Throttle box potentiometer",32.340000000000003,{"$f":"A46*C46","v":0}]
[null,"Remote Control: Hand held box with Speed and Direction control",19.635000000000002,0]
[null,"Remote Control: Extension Lead Can be fitted to Bulkhead or Motor Closing panel. Plug box in further away",14.437500000000002,0]
[null,"Splitter box for remote control (Safely and instantly switch between manual and remote control)",41.58,0]
[null,"Number Plates. Personalised CNC cut. Will normally be posted seperately.",26.950000000000003,0]
[null,"Safety Battery non spill fully sealed, 12 volt, 35 Amp Hour, weighs 11 kilos",97.02000000000001,0]
[null,"Battery charger 12/24v 230 volt",125.4,0]
[null,"Battery condition meter 12 or 24 volt",19.635000000000002,0]
[null,"Trailer Build Manual ( Specify Standard or T & C Trailer)Included in both kits below",16.5,0]
[null,"Trailer Kit Tractor T&C type Trailer  [no tow bar]",148.79700000000003,{"$f":"A55*C55","v":0}]
[null,"Trailer Panel set Ready cut",46.2,{"$f":"A56*C56","v":0}]
[null,"Trailer Batten x 19 x19 x 8mtrs, Trailer chassis and draw bar material 1 box screws, pot of glue,",32.340000000000003,{"$f":"A57*C57","v":0}]
[null,"Trailer Kit Tractor STANDARD type Trailer  [no tow bar]",121.55000000000001,0]
[null,"Trailer Panel set Ready cut",46.2,0]
[null,"Trailer Batten x 19 x19 x 8mtrs, 1 box screws, pot of glue,",25.410000000000004,0]
[null,"Second drive wheel conversion at initial build. Saves sending wheel back for conversion later.",28.875000000000004,{"$f":"A61*C61","v":0}]
[null,"Glue Titebond II 8oz 237ml",8.0850000000000009,{"$f":"A62*C62","v":0}]
[null,null,null,{"$f":"A63*C63","v":0}]
[null,"The result will need to be checked and reviewed by Real Life Toys Toylander Ltd before final price agreed","SUB TOTAL",{"$f":"SUM(D2:D63)","v":46.2}]
[null,"Export payment by Bank transfer in Sterling.   Cost paid for by purchaser.         VAT","20% VAT inc",{"$f":"D64/6","v":7.7}]
[]
[null,"Grand Total including VAT",null,{"$f":"D64+D66","v":46.2}]
[null," 20% VAT included",null,{"$f":"D67/6","v":7.7}]
[null,null,"No VAT",{"$f":"D67-D68","v":38.5}]